[Event "Early-Titled-Tuesday-Blitz-October-24-2023"]
[Site "Chess.com"]
[Date "2023.10.24"]
[Round "4"]
[White "CHENNAIBOND"]
[Black "santosalberto1987"]
[Result "0-1"]
[WhiteElo "1675"]
[BlackElo "2413"]
[TimeControl "180+1"]
[EndTime "8:32:09 PDT"]
[Termination "santosalberto1987 won by resignation"]

1. e4 {[%clk 0:03:00.9]} 1... e6 {[%clk 0:02:56.6]} 2. d4 {[%clk 0:03:00.2]}
2... d5 {[%clk 0:02:56.9]} 3. Nc3 {[%clk 0:03:00.4]} 3... Nf6 {[%clk 0:02:56.9]}
4. e5 {[%clk 0:03:00.3]} 4... Nfd7 {[%clk 0:02:56.9]} 5. f4 {[%clk 0:03:00.6]}
5... c5 {[%clk 0:02:57.1]} 6. Nf3 {[%clk 0:03:00.5]} 6... Nc6 {[%clk 0:02:57.6]}
7. Be3 {[%clk 0:03:00.5]} 7... Qb6 {[%clk 0:02:58.1]} 8. a3 {[%clk 0:02:54.8]}
8... c4 {[%clk 0:02:57.8]} 9. Qd2 {[%clk 0:02:19.2]} 9... Qxb2 {[%clk
0:02:51.8]} 10. Rb1 {[%clk 0:02:18.2]} 10... Qxa3 {[%clk 0:02:51.3]} 11. Be2
{[%clk 0:02:10.3]} 11... Bb4 {[%clk 0:02:50.1]} 0-1

[Event "Early-Titled-Tuesday-Blitz-October-24-2023"]
[Site "Chess.com"]
[Date "2023.10.24"]
[Round "4"]
[White "vasblesk"]
[Black "Skatchkov_V"]
[Result "1/2-1/2"]
[WhiteElo "2761"]
[BlackElo "2559"]
[TimeControl "180+1"]
[EndTime "8:32:44 PDT"]
[Termination "Game drawn by repetition"]

1. Nf3 {[%clk 0:03:00.9]} 1... d5 {[%clk 0:02:59.2]} 2. g3 {[%clk 0:02:58.1]}
2... Nd7 {[%clk 0:02:59.3]} 3. Bg2 {[%clk 0:02:57.2]} 3... e5 {[%clk 0:02:59.4]}
4. O-O {[%clk 0:02:57.6]} 4... Bd6 {[%clk 0:02:58.5]} 5. d3 {[%clk 0:02:57.8]}
5... Ngf6 {[%clk 0:02:58.6]} 6. c4 {[%clk 0:02:57.5]} 6... c6 {[%clk 0:02:58.7]}
7. Bg5 {[%clk 0:02:51.6]} 7... O-O {[%clk 0:02:54.3]} 8. Nc3 {[%clk 0:02:50.9]}
8... h6 {[%clk 0:02:54.2]} 9. Bxf6 {[%clk 0:02:50]} 9... Nxf6 {[%clk 0:02:55.1]}
10. cxd5 {[%clk 0:02:50.7]} 10... cxd5 {[%clk 0:02:47.6]} 11. Nd2 {[%clk
0:02:50.5]} 11... Be6 {[%clk 0:02:40.4]} 12. a3 {[%clk 0:02:45.1]} 12... Rc8
{[%clk 0:02:35.4]} 13. Rc1 {[%clk 0:02:43.4]} 13... Qb6 {[%clk 0:02:27.1]} 14.
b4 {[%clk 0:02:36]} 14... a5 {[%clk 0:02:24.1]} 15. Na4 {[%clk 0:02:24]} 15...
Qb5 {[%clk 0:02:24.2]} 16. Nc3 {[%clk 0:02:20.8]} 16... Qb6 {[%clk 0:02:24.2]}
17. Na4 {[%clk 0:02:20.9]} 17... Qb5 {[%clk 0:02:24.3]} 18. Nc3 {[%clk
0:02:18.5]} 18... Qb6 {[%clk 0:02:20.1]} 1/2-1/2

[Event "Early-Titled-Tuesday-Blitz-October-24-2023"]
[Site "Chess.com"]
[Date "2023.10.24"]
[Round "4"]
[White "Treasurechess777"]
[Black "surrenderPLS"]
[Result "0-1"]
[WhiteElo "2320"]
[BlackElo "2513"]
[TimeControl "180+1"]
[EndTime "8:32:54 PDT"]
[Termination "surrenderPLS won by resignation"]

1. Nf3 {[%clk 0:02:59.8]} 1... Nf6 {[%clk 0:03:00]} 2. b3 {[%clk 0:02:58.7]}
2... g6 {[%clk 0:02:59.8]} 3. Bb2 {[%clk 0:02:55.8]} 3... Bg7 {[%clk 0:03:00.7]}
4. e3 {[%clk 0:02:56.2]} 4... O-O {[%clk 0:03:00.9]} 5. d4 {[%clk 0:02:56.3]}
5... b6 {[%clk 0:03:01.3]} 6. Bd3 {[%clk 0:02:56.7]} 6... Bb7 {[%clk 0:03:01.6]}
7. Nbd2 {[%clk 0:02:57.5]} 7... d6 {[%clk 0:03:01.5]} 8. c4 {[%clk 0:02:58]}
8... Nbd7 {[%clk 0:03:01.9]} 9. Qc2 {[%clk 0:02:55.3]} 9... c5 {[%clk
0:02:58.4]} 10. d5 {[%clk 0:02:54.1]} 10... e6 {[%clk 0:02:57.7]} 11. dxe6
{[%clk 0:02:52.4]} 11... fxe6 {[%clk 0:02:56.7]} 12. h4 {[%clk 0:02:48.5]} 12...
Qe7 {[%clk 0:02:54.5]} 13. h5 {[%clk 0:02:47.3]} 13... Nxh5 {[%clk 0:02:53.1]}
14. Rxh5 {[%clk 0:02:47.4]} 14... gxh5 {[%clk 0:02:52.6]} 15. Bxh7+ {[%clk
0:02:48.3]} 15... Kh8 {[%clk 0:02:53.1]} 16. O-O-O {[%clk 0:02:45.6]} 16...
Bxb2+ {[%clk 0:02:52]} 17. Qxb2+ {[%clk 0:02:38.6]} 17... Kxh7 {[%clk 0:02:52]}
18. Rh1 {[%clk 0:02:38.5]} 18... Qf6 {[%clk 0:02:40]} 19. Rxh5+ {[%clk
0:02:37.3]} 19... Kg7 {[%clk 0:02:37.1]} 20. Qc2 {[%clk 0:02:29.7]} 20... Rh8
{[%clk 0:02:33.1]} 21. Rg5+ {[%clk 0:02:29.2]} 21... Kf7 {[%clk 0:02:33.2]} 22.
Ne4 {[%clk 0:02:20.7]} 22... Rh1+ {[%clk 0:02:29.8]} 23. Kd2 {[%clk 0:02:20.9]}
23... Bxe4 {[%clk 0:02:27.4]} 24. Qxe4 {[%clk 0:02:21.3]} 24... Qb2+ {[%clk
0:02:27.9]} 0-1

[Event "Early-Titled-Tuesday-Blitz-October-24-2023"]
[Site "Chess.com"]
[Date "2023.10.24"]
[Round "4"]
[White "MFatigue"]
[Black "GAusal"]
[Result "0-1"]
[WhiteElo "2468"]
[BlackElo "2299"]
[TimeControl "180+1"]
[EndTime "8:33:30 PDT"]
[Termination "GAusal won by checkmate"]

1. e4 {[%clk 0:03:00.9]} 1... c5 {[%clk 0:02:52.8]} 2. a3 {[%clk 0:03:00.4]}
2... e6 {[%clk 0:02:51.9]} 3. b4 {[%clk 0:03:00.6]} 3... b6 {[%clk 0:02:50.6]}
4. Nc3 {[%clk 0:02:58.4]} 4... Bb7 {[%clk 0:02:49.8]} 5. b5 {[%clk 0:02:58.8]}
5... d5 {[%clk 0:02:48.4]} 6. exd5 {[%clk 0:02:49.7]} 6... exd5 {[%clk 0:02:48]}
7. d4 {[%clk 0:02:50.6]} 7... Nf6 {[%clk 0:02:46.1]} 8. Nf3 {[%clk 0:02:49.9]}
8... Bd6 {[%clk 0:02:45.6]} 9. Be2 {[%clk 0:02:49.8]} 9... O-O {[%clk
0:02:43.4]} 10. O-O {[%clk 0:02:50.4]} 10... Re8 {[%clk 0:02:43.7]} 11. h3
{[%clk 0:02:50.6]} 11... c4 {[%clk 0:02:42.2]} 12. Be3 {[%clk 0:02:34.5]} 12...
Ne4 {[%clk 0:02:41.6]} 13. Nxe4 {[%clk 0:02:26.9]} 13... Rxe4 {[%clk 0:02:41.1]}
14. Nd2 {[%clk 0:02:12.5]} 14... Re8 {[%clk 0:02:39.7]} 15. c3 {[%clk
0:02:13.1]} 15... Nd7 {[%clk 0:02:39.2]} 16. Bf3 {[%clk 0:02:13.2]} 16... Nf6
{[%clk 0:02:37.6]} 17. Nxc4 {[%clk 0:02:10.6]} 17... Bb8 {[%clk 0:02:26.2]} 18.
Bg5 {[%clk 0:02:01.8]} 18... Qc7 {[%clk 0:02:24.4]} 19. Bxf6 {[%clk 0:01:29.7]}
19... Qh2# {[%clk 0:02:21.1]} 0-1

[Event "Early-Titled-Tuesday-Blitz-October-24-2023"]
[Site "Chess.com"]
[Date "2023.10.24"]
[Round "4"]
[White "Kirill_Klukin"]
[Black "Larina_Maria"]
[Result "1-0"]
[WhiteElo "2640"]
[BlackElo "2225"]
[TimeControl "180+1"]
[EndTime "8:33:41 PDT"]
[Termination "Kirill_Klukin won by resignation"]

1. f4 {[%clk 0:03:00.8]} 1... d5 {[%clk 0:02:57.2]} 2. Nf3 {[%clk 0:02:57.7]}
2... c5 {[%clk 0:02:56.8]} 3. g3 {[%clk 0:02:57.5]} 3... g6 {[%clk 0:02:55]} 4.
Bg2 {[%clk 0:02:58]} 4... Bg7 {[%clk 0:02:55.2]} 5. O-O {[%clk 0:02:58.7]} 5...
Nf6 {[%clk 0:02:55.3]} 6. d3 {[%clk 0:02:59.1]} 6... Nc6 {[%clk 0:02:55.4]} 7.
Nc3 {[%clk 0:02:59.8]} 7... O-O {[%clk 0:02:55]} 8. e4 {[%clk 0:02:59.4]} 8...
dxe4 {[%clk 0:02:53.6]} 9. dxe4 {[%clk 0:02:59.7]} 9... e5 {[%clk 0:02:14.1]}
10. fxe5 {[%clk 0:02:55.2]} 10... Ng4 {[%clk 0:02:13.8]} 11. Qxd8 {[%clk
0:02:55.1]} 11... Rxd8 {[%clk 0:02:12.8]} 12. Bg5 {[%clk 0:02:55.8]} 12... Re8
{[%clk 0:02:08.8]} 13. Nd5 {[%clk 0:02:55.8]} 13... Rb8 {[%clk 0:01:48.3]} 14.
Nf6+ {[%clk 0:02:34]} 14... Bxf6 {[%clk 0:01:43.8]} 15. exf6 {[%clk 0:02:34.3]}
15... Rxe4 {[%clk 0:01:36.3]} 16. h3 {[%clk 0:02:28.9]} 16... Nge5 {[%clk
0:01:17.9]} 17. Nxe5 {[%clk 0:02:28.8]} 17... Rxe5 {[%clk 0:01:17.4]} 18. Bf4
{[%clk 0:02:29.3]} 18... Bf5 {[%clk 0:01:14.3]} 19. Bxc6 {[%clk 0:02:29.1]} 1-0

[Event "Early-Titled-Tuesday-Blitz-October-24-2023"]
[Site "Chess.com"]
[Date "2023.10.24"]
[Round "4"]
[White "chess_blitz00"]
[Black "Resignify"]
[Result "1-0"]
[WhiteElo "2498"]
[BlackElo "2300"]
[TimeControl "180+1"]
[EndTime "8:33:46 PDT"]
[Termination "chess_blitz00 won by resignation"]

1. Nf3 {[%clk 0:02:25.1]} 1... Nf6 {[%clk 0:02:59.4]} 2. b3 {[%clk 0:02:26]}
2... g6 {[%clk 0:02:59.6]} 3. Bb2 {[%clk 0:02:26.9]} 3... Bg7 {[%clk 0:03:00.2]}
4. g3 {[%clk 0:02:27.5]} 4... d6 {[%clk 0:03:00.7]} 5. Bg2 {[%clk 0:02:28]} 5...
Nbd7 {[%clk 0:03:01.4]} 6. O-O {[%clk 0:02:28.6]} 6... O-O {[%clk 0:03:02]} 7.
d4 {[%clk 0:02:29.3]} 7... a5 {[%clk 0:03:00.2]} 8. Nbd2 {[%clk 0:02:23.9]} 8...
a4 {[%clk 0:02:59.8]} 9. c4 {[%clk 0:02:18]} 9... Re8 {[%clk 0:02:52.6]} 10. e4
{[%clk 0:02:15.4]} 10... a3 {[%clk 0:02:41.9]} 11. Bc3 {[%clk 0:02:15.2]} 11...
e5 {[%clk 0:02:30.9]} 12. Qc2 {[%clk 0:02:15]} 12... c6 {[%clk 0:02:03.9]} 13.
Rfe1 {[%clk 0:02:14.6]} 13... Qb6 {[%clk 0:01:57.8]} 14. Rad1 {[%clk 0:02:14]}
14... h6 {[%clk 0:01:52.5]} 15. b4 {[%clk 0:02:14]} 15... c5 {[%clk 0:01:45.9]}
16. bxc5 {[%clk 0:02:01.8]} 16... dxc5 {[%clk 0:01:46.8]} 17. dxe5 {[%clk
0:02:02.3]} 17... Nxe5 {[%clk 0:01:39.6]} 18. Nxe5 {[%clk 0:02:00.6]} 1-0

[Event "Early-Titled-Tuesday-Blitz-October-24-2023"]
[Site "Chess.com"]
[Date "2023.10.24"]
[Round "4"]
[White "Sjakkerntobi"]
[Black "AlexPapasimakopoulos"]
[Result "0-1"]
[WhiteElo "2486"]
[BlackElo "2673"]
[TimeControl "180+1"]
[EndTime "8:34:19 PDT"]
[Termination "AlexPapasimakopoulos won by resignation"]

1. e4 {[%clk 0:03:00.9]} 1... e6 {[%clk 0:03:00]} 2. d4 {[%clk 0:03:01]} 2... d5
{[%clk 0:03:00.4]} 3. Nc3 {[%clk 0:03:01.9]} 3... Bb4 {[%clk 0:03:00]} 4. e5
{[%clk 0:03:01.7]} 4... c5 {[%clk 0:02:59.7]} 5. a3 {[%clk 0:03:02.4]} 5...
Bxc3+ {[%clk 0:02:59.9]} 6. bxc3 {[%clk 0:03:03.3]} 6... Nc6 {[%clk 0:03:00]} 7.
h4 {[%clk 0:03:02.7]} 7... Bd7 {[%clk 0:02:59.2]} 8. h5 {[%clk 0:03:02.9]} 8...
Qa5 {[%clk 0:02:59.9]} 9. Bd2 {[%clk 0:02:58.2]} 9... h6 {[%clk 0:02:58.8]} 10.
Qg4 {[%clk 0:02:56.1]} 10... Kf8 {[%clk 0:02:59.2]} 11. Rh3 {[%clk 0:02:42.1]}
11... Nge7 {[%clk 0:02:58.2]} 12. Nf3 {[%clk 0:02:19.4]} 12... Qa4 {[%clk
0:02:57.8]} 13. Rb1 {[%clk 0:01:56.5]} 13... b6 {[%clk 0:02:48.3]} 14. Bb5
{[%clk 0:01:52.1]} 14... Qxc2 {[%clk 0:02:45.8]} 15. Rc1 {[%clk 0:01:52.3]}
15... Qe4+ {[%clk 0:02:42.6]} 16. Qxe4 {[%clk 0:01:49.6]} 16... dxe4 {[%clk
0:02:43.5]} 17. Ng1 {[%clk 0:01:45.8]} 17... Nxe5 {[%clk 0:02:38.6]} 18. dxe5
{[%clk 0:01:40.4]} 18... Bxb5 {[%clk 0:02:38.2]} 19. c4 {[%clk 0:01:39.1]} 19...
Bc6 {[%clk 0:02:35.9]} 20. Ne2 {[%clk 0:01:39.1]} 20... Nf5 {[%clk 0:02:33.6]}
21. Be3 {[%clk 0:01:36.8]} 21... Rd8 {[%clk 0:02:32.2]} 22. g4 {[%clk
0:01:35.6]} 22... Nd4 {[%clk 0:02:29.2]} 23. Bxd4 {[%clk 0:01:34.1]} 23... cxd4
{[%clk 0:02:30.1]} 24. c5 {[%clk 0:01:34.7]} 24... d3 {[%clk 0:02:27.7]} 25. Kd2
{[%clk 0:01:21.7]} 25... dxe2+ {[%clk 0:02:27.6]} 26. Kxe2 {[%clk 0:01:22.6]}
26... Bb5+ {[%clk 0:02:21.8]} 27. Ke1 {[%clk 0:01:20.9]} 27... Rc8 {[%clk
0:02:18.7]} 28. Rhc3 {[%clk 0:01:20]} 28... Ke7 {[%clk 0:02:17.9]} 29. c6 {[%clk
0:01:18.1]} 29... Rc7 {[%clk 0:02:14.7]} 30. a4 {[%clk 0:01:16.6]} 30... Bxa4
{[%clk 0:02:12.8]} 31. Rd1 {[%clk 0:01:17.2]} 31... Bxc6 {[%clk 0:02:12.1]} 0-1

[Event "Early-Titled-Tuesday-Blitz-October-24-2023"]
[Site "Chess.com"]
[Date "2023.10.24"]
[Round "4"]
[White "louis198"]
[Black "seopie"]
[Result "0-1"]
[WhiteElo "2681"]
[BlackElo "2914"]
[TimeControl "180+1"]
[EndTime "8:34:20 PDT"]
[Termination "seopie won by resignation"]

1. d4 {[%clk 0:03:00]} 1... Nf6 {[%clk 0:03:00.6]} 2. Bf4 {[%clk 0:03:00.1]}
2... d5 {[%clk 0:02:57.3]} 3. e3 {[%clk 0:02:59.6]} 3... e6 {[%clk 0:02:56.4]}
4. Bd3 {[%clk 0:02:59.2]} 4... c5 {[%clk 0:02:54.9]} 5. c3 {[%clk 0:02:59.4]}
5... Nc6 {[%clk 0:02:51]} 6. Nd2 {[%clk 0:02:58.9]} 6... Qb6 {[%clk 0:02:49.8]}
7. Qb1 {[%clk 0:02:57.4]} 7... Nh5 {[%clk 0:02:42.3]} 8. Bg3 {[%clk 0:02:57.2]}
8... Nxg3 {[%clk 0:02:41.7]} 9. hxg3 {[%clk 0:02:57.3]} 9... h6 {[%clk
0:02:42.6]} 10. Ngf3 {[%clk 0:02:56.7]} 10... Bd7 {[%clk 0:02:39.5]} 11. O-O
{[%clk 0:02:56.7]} 11... Be7 {[%clk 0:02:38.4]} 12. dxc5 {[%clk 0:02:50.4]}
12... Qxc5 {[%clk 0:02:38.3]} 13. e4 {[%clk 0:02:49]} 13... O-O {[%clk
0:02:38.3]} 14. Rd1 {[%clk 0:02:45]} 14... Rad8 {[%clk 0:02:37.6]} 15. exd5
{[%clk 0:02:45.1]} 15... Qxd5 {[%clk 0:02:36.7]} 16. Nf1 {[%clk 0:02:39.5]}
16... Qa5 {[%clk 0:02:35.4]} 17. Qc2 {[%clk 0:02:34.6]} 17... Bc8 {[%clk
0:02:33.3]} 18. Ne3 {[%clk 0:02:33.7]} 18... Ne5 {[%clk 0:02:28.7]} 19. Be4
{[%clk 0:02:25.3]} 19... Nxf3+ {[%clk 0:02:28.6]} 20. Bxf3 {[%clk 0:02:25]}
20... Qc7 {[%clk 0:02:27.2]} 21. Rxd8 {[%clk 0:02:20.9]} 21... Rxd8 {[%clk
0:02:26.8]} 22. Rd1 {[%clk 0:02:21.8]} 22... Rxd1+ {[%clk 0:02:26.8]} 23. Qxd1
{[%clk 0:02:21]} 23... b6 {[%clk 0:02:27.4]} 24. Qa4 {[%clk 0:02:19.7]} 24...
Bd7 {[%clk 0:02:26.3]} 25. Qe4 {[%clk 0:02:19.7]} 25... Bc5 {[%clk 0:02:20]} 26.
Nc4 {[%clk 0:02:17.4]} 26... Qxg3 {[%clk 0:02:04.5]} 27. Ne3 {[%clk 0:02:01.7]}
27... Qc7 {[%clk 0:01:57.5]} 28. Nc4 {[%clk 0:02:01.4]} 28... Qg3 {[%clk
0:01:53.3]} 29. Ne3 {[%clk 0:02:01.1]} 29... Qb8 {[%clk 0:01:53.2]} 30. Nc4
{[%clk 0:01:59.3]} 30... Be8 {[%clk 0:01:52.5]} 31. b4 {[%clk 0:01:58.9]} 31...
Be7 {[%clk 0:01:51.8]} 32. Ne5 {[%clk 0:01:51.7]} 32... Bf6 {[%clk 0:01:51.5]}
33. c4 {[%clk 0:01:49.9]} 33... Bxe5 {[%clk 0:01:50.3]} 0-1

[Event "Early-Titled-Tuesday-Blitz-October-24-2023"]
[Site "Chess.com"]
[Date "2023.10.24"]
[Round "4"]
[White "parintele_chess"]
[Black "Alenzer"]
[Result "1-0"]
[WhiteElo "2267"]
[BlackElo "2073"]
[TimeControl "180+1"]
[EndTime "8:34:31 PDT"]
[Termination "parintele_chess won by resignation"]

1. d4 {[%clk 0:03:00.9]} 1... d5 {[%clk 0:02:59.5]} 2. Bf4 {[%clk 0:02:59.8]}
2... Nf6 {[%clk 0:02:57.9]} 3. Nf3 {[%clk 0:03:00.1]} 3... c5 {[%clk 0:02:58.4]}
4. e3 {[%clk 0:03:00.5]} 4... Nc6 {[%clk 0:02:53.8]} 5. Nbd2 {[%clk 0:03:00.6]}
5... e6 {[%clk 0:02:51.2]} 6. c3 {[%clk 0:03:00]} 6... Bd6 {[%clk 0:02:49.2]} 7.
Bg3 {[%clk 0:03:00.2]} 7... O-O {[%clk 0:02:48.5]} 8. Bd3 {[%clk 0:03:00.8]}
8... Re8 {[%clk 0:02:44.7]} 9. Ne5 {[%clk 0:03:00]} 9... Bxe5 {[%clk 0:02:26.6]}
10. dxe5 {[%clk 0:03:00.9]} 10... Nd7 {[%clk 0:02:24.4]} 11. f4 {[%clk
0:03:00.8]} 11... f6 {[%clk 0:02:16.9]} 12. Qh5 {[%clk 0:02:48]} 12... Nf8
{[%clk 0:02:16]} 13. O-O {[%clk 0:02:34.6]} 13... d4 {[%clk 0:02:08.6]} 14. Ne4
{[%clk 0:02:18.1]} 14... dxc3 {[%clk 0:01:58]} 15. Rad1 {[%clk 0:02:14.7]} 15...
Qe7 {[%clk 0:01:54.5]} 16. exf6 {[%clk 0:02:09.4]} 16... gxf6 {[%clk 0:01:54.2]}
17. Bh4 {[%clk 0:02:00.1]} 17... Ng6 {[%clk 0:01:22]} 18. Nxf6+ {[%clk 0:01:36]}
1-0

[Event "Early-Titled-Tuesday-Blitz-October-24-2023"]
[Site "Chess.com"]
[Date "2023.10.24"]
[Round "4"]
[White "Orujov2008"]
[Black "Semetey"]
[Result "1-0"]
[WhiteElo "2754"]
[BlackElo "2531"]
[TimeControl "180+1"]
[EndTime "8:34:43 PDT"]
[Termination "Orujov2008 won by resignation"]

1. e4 {[%clk 0:03:00.9]} 1... a6 {[%clk 0:03:00.9]} 2. d4 {[%clk 0:02:59.2]}
2... g6 {[%clk 0:03:00.4]} 3. Nf3 {[%clk 0:02:56]} 3... Bg7 {[%clk 0:03:01]} 4.
Nc3 {[%clk 0:02:55.7]} 4... d6 {[%clk 0:03:01.6]} 5. Be3 {[%clk 0:02:55.1]} 5...
b5 {[%clk 0:02:59.1]} 6. h4 {[%clk 0:02:52.9]} 6... Nf6 {[%clk 0:02:57.8]} 7.
Bd3 {[%clk 0:02:46]} 7... Bb7 {[%clk 0:02:56.6]} 8. h5 {[%clk 0:02:28.4]} 8...
Nxh5 {[%clk 0:02:46.3]} 9. Ng5 {[%clk 0:02:28]} 9... Nf6 {[%clk 0:02:43.8]} 10.
e5 {[%clk 0:02:24.2]} 10... dxe5 {[%clk 0:02:32.8]} 11. dxe5 {[%clk 0:02:25.1]}
11... Nd5 {[%clk 0:02:33.1]} 12. Be4 {[%clk 0:02:19.5]} 12... e6 {[%clk
0:02:26.2]} 13. Nxd5 {[%clk 0:02:12.5]} 13... exd5 {[%clk 0:02:24.9]} 14. Nxf7
{[%clk 0:02:01.5]} 14... Kxf7 {[%clk 0:02:22]} 15. e6+ {[%clk 0:02:02.4]} 15...
Kxe6 {[%clk 0:02:21.3]} 16. Qg4+ {[%clk 0:02:01.9]} 16... Kf7 {[%clk 0:02:20]}
17. O-O-O {[%clk 0:02:00.9]} 17... c6 {[%clk 0:02:01.3]} 18. Rxh7 {[%clk
0:01:57.9]} 18... Rxh7 {[%clk 0:01:59.1]} 19. Bxg6+ {[%clk 0:01:56.4]} 19... Kf8
{[%clk 0:01:47]} 20. Bc5+ {[%clk 0:01:54.7]} 20... Kg8 {[%clk 0:01:45.1]} 21.
Bxh7+ {[%clk 0:01:53]} 21... Kxh7 {[%clk 0:01:45.2]} 22. Rh1+ {[%clk 0:01:47.4]}
22... Bh6+ {[%clk 0:01:45.3]} 23. Be3 {[%clk 0:01:44.3]} 23... Qf6 {[%clk
0:01:44.2]} 24. Rxh6+ {[%clk 0:01:26.2]} 24... Qxh6 {[%clk 0:01:45.1]} 25. Bxh6
{[%clk 0:01:26.8]} 25... Kxh6 {[%clk 0:01:45]} 26. Qe6+ {[%clk 0:01:26.5]} 26...
Kh5 {[%clk 0:01:34.9]} 27. Qf7+ {[%clk 0:01:24.9]} 1-0

[Event "Early-Titled-Tuesday-Blitz-October-24-2023"]
[Site "Chess.com"]
[Date "2023.10.24"]
[Round "4"]
[White "jup1978"]
[Black "Andrei_Skvortsov"]
[Result "1/2-1/2"]
[WhiteElo "2486"]
[BlackElo "2656"]
[TimeControl "180+1"]
[EndTime "8:34:44 PDT"]
[Termination "Game drawn by repetition"]

1. d4 {[%clk 0:03:00.9]} 1... g6 {[%clk 0:02:59.5]} 2. Nf3 {[%clk 0:03:00]} 2...
Bg7 {[%clk 0:03:00]} 3. c4 {[%clk 0:03:00.3]} 3... e6 {[%clk 0:03:00.3]} 4. Nc3
{[%clk 0:02:59.4]} 4... Ne7 {[%clk 0:03:00.7]} 5. g3 {[%clk 0:02:59.3]} 5... d5
{[%clk 0:03:01]} 6. cxd5 {[%clk 0:02:57.2]} 6... exd5 {[%clk 0:03:01.9]} 7. Bg2
{[%clk 0:02:56.2]} 7... Nd7 {[%clk 0:02:59.1]} 8. O-O {[%clk 0:02:54.5]} 8...
O-O {[%clk 0:02:58.4]} 9. Bf4 {[%clk 0:02:51]} 9... c6 {[%clk 0:02:58.3]} 10. b4
{[%clk 0:02:47.4]} 10... a6 {[%clk 0:02:53.6]} 11. a4 {[%clk 0:02:43.7]} 11...
Nf6 {[%clk 0:02:53.4]} 12. b5 {[%clk 0:02:41.6]} 12... axb5 {[%clk 0:02:54.3]}
13. axb5 {[%clk 0:02:41.8]} 13... Rxa1 {[%clk 0:02:54.9]} 14. Qxa1 {[%clk
0:02:42.4]} 14... Ne4 {[%clk 0:02:55.4]} 15. bxc6 {[%clk 0:02:39.8]} 15... bxc6
{[%clk 0:02:55.7]} 16. Ne5 {[%clk 0:02:31.7]} 16... Nxc3 {[%clk 0:02:50.7]} 17.
Qxc3 {[%clk 0:02:32.6]} 17... Qb6 {[%clk 0:02:45.2]} 18. Rc1 {[%clk 0:02:27.4]}
18... Nf5 {[%clk 0:02:38.3]} 19. e3 {[%clk 0:02:22.4]} 19... Bxe5 {[%clk
0:02:33]} 20. Bxe5 {[%clk 0:02:21.8]} 20... Bd7 {[%clk 0:02:32.6]} 21. h4 {[%clk
0:02:14]} 21... Re8 {[%clk 0:02:28.2]} 22. Qc2 {[%clk 0:02:00.5]} 22... h5
{[%clk 0:02:25]} 23. Rb1 {[%clk 0:01:59.7]} 23... Qa7 {[%clk 0:02:21.8]} 24. Qb2
{[%clk 0:01:52.3]} 24... Rc8 {[%clk 0:02:18.9]} 25. Qb7 {[%clk 0:01:47.9]} 25...
Qxb7 {[%clk 0:02:18.8]} 26. Rxb7 {[%clk 0:01:48.3]} 26... Be6 {[%clk 0:02:19]}
27. Rb8 {[%clk 0:01:43.1]} 27... Rxb8 {[%clk 0:02:18.6]} 28. Bxb8 {[%clk
0:01:44]} 28... Kf8 {[%clk 0:02:17.6]} 29. Kf1 {[%clk 0:01:43.3]} 29... Ke7
{[%clk 0:02:17.2]} 30. Ke2 {[%clk 0:01:43.9]} 30... Nd6 {[%clk 0:02:14.7]} 31.
Bxd6+ {[%clk 0:01:35.9]} 31... Kxd6 {[%clk 0:02:14.7]} 32. Kd3 {[%clk
0:01:36.8]} 32... c5 {[%clk 0:02:14.9]} 33. dxc5+ {[%clk 0:01:36.6]} 33... Kxc5
{[%clk 0:02:15.8]} 34. Bf3 {[%clk 0:01:35.9]} 34... Bf5+ {[%clk 0:02:14.4]} 35.
Kc3 {[%clk 0:01:36]} 35... Be4 {[%clk 0:02:07.9]} 36. Bd1 {[%clk 0:01:33.7]}
36... Bf5 {[%clk 0:02:05.2]} 37. Ba4 {[%clk 0:01:32.8]} 37... f6 {[%clk
0:02:04.2]} 38. Be8 {[%clk 0:01:30.8]} 38... Be4 {[%clk 0:02:04]} 39. Bf7 {[%clk
0:01:30.5]} 39... Bf5 {[%clk 0:02:03.8]} 40. Be8 {[%clk 0:01:24.5]} 40... Be4
{[%clk 0:02:01.8]} 41. Bf7 {[%clk 0:01:25]} 41... Bf5 {[%clk 0:02:01.4]} 42. Be8
{[%clk 0:01:25.3]} 1/2-1/2

[Event "Early-Titled-Tuesday-Blitz-October-24-2023"]
[Site "Chess.com"]
[Date "2023.10.24"]
[Round "4"]
[White "crazy_m_attack"]
[Black "tomobeast"]
[Result "1-0"]
[WhiteElo "2448"]
[BlackElo "2226"]
[TimeControl "180+1"]
[EndTime "8:34:44 PDT"]
[Termination "crazy_m_attack won by resignation"]

1. e4 {[%clk 0:03:00.9]} 1... c5 {[%clk 0:02:58.7]} 2. Nf3 {[%clk 0:03:00.8]}
2... Nf6 {[%clk 0:02:56.8]} 3. e5 {[%clk 0:02:57.5]} 3... Nd5 {[%clk 0:02:56.4]}
4. Nc3 {[%clk 0:02:56.8]} 4... e6 {[%clk 0:02:53.8]} 5. Ne4 {[%clk 0:02:54.7]}
5... f5 {[%clk 0:02:52.4]} 6. exf6 {[%clk 0:02:44.4]} 6... Nxf6 {[%clk
0:02:52.4]} 7. d3 {[%clk 0:02:39.6]} 7... d5 {[%clk 0:02:50.4]} 8. Ng3 {[%clk
0:02:39.1]} 8... Nc6 {[%clk 0:02:49.8]} 9. d4 {[%clk 0:02:36.8]} 9... cxd4
{[%clk 0:02:44.3]} 10. Nxd4 {[%clk 0:02:36.5]} 10... Bc5 {[%clk 0:02:45.2]} 11.
Nb3 {[%clk 0:02:17.6]} 11... Bb6 {[%clk 0:02:38.9]} 12. Be2 {[%clk 0:02:14.2]}
12... O-O {[%clk 0:02:38.2]} 13. O-O {[%clk 0:02:14.6]} 13... e5 {[%clk
0:02:18.9]} 14. c4 {[%clk 0:02:13.2]} 14... Kh8 {[%clk 0:02:06.2]} 15. cxd5
{[%clk 0:02:10.6]} 15... Nxd5 {[%clk 0:02:07]} 16. Bc4 {[%clk 0:02:03.7]} 16...
Nf4 {[%clk 0:02:05.9]} 17. Qxd8 {[%clk 0:01:59.8]} 17... Rxd8 {[%clk 0:02:06.5]}
18. Be3 {[%clk 0:02:00.3]} 18... Bxe3 {[%clk 0:01:50.4]} 19. fxe3 {[%clk
0:02:01.2]} 19... Ng6 {[%clk 0:01:51]} 20. Ne4 {[%clk 0:01:39.9]} 20... Bg4
{[%clk 0:01:45.7]} 21. Ng5 {[%clk 0:01:37.5]} 21... Na5 {[%clk 0:01:13.7]} 22.
Nxa5 {[%clk 0:01:34.7]} 1-0